Cogmind - Beta 14 @@@ ROGUE MODE // 2024.10.23 @ 16:35:54 Player: AppleSource Result: Destroyed by B-75 Beast with Magnetic Acceleration Cannon Performance ------------- Evolutions (4) 2000 Regions Visited (10) 2000 Robots Destroyed (93) 465 Value Destroyed (2476) 2476 Prototype IDs (24) 480 Alien Tech Used (0) 0 Bonus (402) 402 TOTAL SCORE: 7823 Bonus ------- High Alert Combat Kills 36 Follower Combat Kills 66 Aligned with FarCom 300 Cogmind --------- Core Integrity 0/850 Matter 43/300 Energy 100/100 System Corruption 21% Temperature Cool (12) Movement Core (350) Ox6 Location -6/Extension Parts ------- > --- POWER (2) -------- (None) > --- PROPULSION (4) --- (None) > --- UTILITY (7) ------ Large Storage Unit Improved Melee Analysis Suite > --- WEAPON (2) ------- (None) > --- INVENTORY (15) --- Energy Well (350) Improved Melee Analysis Suite Improved Melee Analysis Suite Improved Actuator Array Improved Hardlight Generator Improved Force Field Powered Hammer Powered Hammer Peak State ------------ > --- POWER ------------ Deuterium Engine Light Fission Core > --- PROPULSION ------- Improved Titanium Leg Flexi-carbon Leg Potential Leg Potential Leg > --- UTILITY ---------- Large Storage Unit Improved Melee Analysis Suite Improved Melee Analysis Suite Microactuators Improved Actuator Array Hardened Heavy Armor Plating > --- WEAPON ----------- Greatsword > --- INVENTORY -------- Micro Nuclear Core Carbon-fiber Leg Carbon-fiber Leg Armored Leg Improved Melee Analysis Suite Improved Melee Analysis Suite Improved Actuator Array Improved Actuator Array Phase Shifter Medium Armor Plating Powered Hammer Powered Hammer Makeshift Spear [Rating: 76] Favorites ----------- Power Light Nuclear Core Engine Deuterium Engine Power Core Light Nuclear Core Reactor Particle Reactor Propulsion Potential Leg Treads Light Treads Leg Potential Leg Wheel Wheel Hover Unit Hover Unit Utility Improved Melee Analysis Suite Device Microactuators Storage Large Storage Unit Processor Improved Melee Analysis Suite Hackware Hacking Suite Protection Medium Armor Plating Weapon Particle Gun Energy Gun Particle Gun Ballistic Gun Light Assault Rifle Launcher Rocket Launcher Impact Weapon Powered Hammer Slashing Weapon Power Sword Piercing Weapon Makeshift Spear Build | -11 -10 -10 -10 -9 -8 -7 -6 -6 -6 -6 ------- Run | Yrd Mat Min Exi Min Mat Fac Fac Was Fac Ext Slots Evolved 8 | . . . . . 4 2 2 . . . Power 1 | . . . . . . . 1 . . . Propulsion 2 | . . . . . 1 1 . . . . Utility 5 | . . . . . 3 1 1 . . . Weapon . | . . . . . . . . . . . Parts Attached 78 | 6 13 . 2 . 14 11 24 2 3 3 Power 20 | 1 2 . . . 2 1 11 . 2 1 Engine 7 | 1 1 . . . 1 1 3 . . . Core 12 | . 1 . . . 1 . 8 . 1 1 Reactor 1 | . . . . . . . . . 1 . Propulsion 19 | 2 5 . 2 . 2 1 4 2 1 . Treads 4 | 2 2 . . . . . . . . . Leg 12 | . . . 2 . 2 1 4 2 1 . Wheel 2 | . 2 . . . . . . . . . Hover 1 | . 1 . . . . . . . . . Flight . | . . . . . . . . . . . Utility 20 | 1 2 . . . 5 5 5 . . 2 Device 8 | . . . . . 1 2 3 . . 2 Storage 2 | 1 1 . . . . . . . . . Processor 3 | . 1 . . . 1 1 . . . . Hackware 1 | . . . . . . 1 . . . . Protection 6 | . . . . . 3 1 2 . . . Artifact . | . . . . . . . . . . . Weapon 19 | 2 4 . . . 5 4 4 . . . Energy Gun 5 | . 3 . . . 2 . . . . . Energy Cannon . | . . . . . . . . . . . Ballistic Gun 2 | 2 . . . . . . . . . . Ballistic Cannon . | . . . . . . . . . . . Launcher 1 | . 1 . . . . . . . . . Special Weapon . | . . . . . . . . . . . Impact Weapon 5 | . . . . . 1 2 2 . . . Slashing Weapon 4 | . . . . . . 2 2 . . . Piercing Weapon 2 | . . . . . 2 . . . . . Special Melee Weapon . | . . . . . . . . . . . Unidentified Prototypes 1 | . . . . . . . 1 . . . Parts Lost 32 | . 5 . . . 2 . 12 4 . 9 Power 9 | . 2 . . . . . 3 1 . 3 Propulsion 11 | . 2 . . . . . 3 3 . 3 Utility 10 | . . . . . 2 . 5 . . 3 Weapon 2 | . 1 . . . . . 1 . . . Highest Loss Streak 8 | . 4 . . . 1 . 4 3 . 8 To Critical Strikes . | . . . . . . . . . . . Average Slot Usage (%) 86 | . 89 100 99 100 78 88 84 76 60 62 Engine 3 | . 7 . . . 1 3 5 5 . . Core 7 | . 5 14 14 14 6 3 6 5 6 6 Treads 6 | . 15 28 18 . . . . . . . Leg 16 | . . . 8 28 21 29 24 21 20 19 Device 4 | . . . . . 2 5 11 10 . 6 Storage 9 | . 14 14 14 14 9 7 6 6 6 6 Processor 13 | . 13 14 14 14 13 13 13 13 13 12 Protection 3 | . . . . . 8 7 5 . . . Energy Gun 11 | . 22 28 28 28 7 . . . . . Impact Weapon 1 | . . . . . 1 5 1 . . . Slashing Weapon 2 | . . . . . . 3 7 12 6 5 Piercing Weapon 1 | . . . . . 6 2 . . . . Peak Build Rating 76 | 6 13 13 30 31 45 61 76 68 42 47 Average Rating 37 | 5 10 13 18 30 40 56 66 59 41 42 On Entrance 30 | . 6 13 13 30 31 42 61 67 26 42 Naked Turns . | . . . . . . . . . . . Heaviest Build 71 | 10 32 31 31 31 44 52 71 57 46 52 Greatest Support 100 | 40 40 40 60 60 75 95 100 80 46 46 Greatest Overweight (x) 10 | 2 10 . 10 . 1 . . 7 . 8 Average Overweight (x) . | . 1 . . . . . . . . . Largest Inventory Capacity 15 | 8 15 15 15 15 15 15 15 15 15 15 Average Capacity 14 | 7 14 15 15 15 15 15 15 15 15 15 Most Carried 15 | 1 6 6 6 7 10 12 14 15 12 10 Average Carried 7 | . 3 6 5 6 9 9 10 14 10 8 Final Capacity 15 | 8 15 15 15 15 15 15 15 15 15 15 Final Carried 14 | 1 6 6 4 7 10 12 14 13 10 8 Class Distribution -------------------- 61% | Mutant 26% | Gladiator 11% | Scavenger-Gladiator Dominant Class ---------------- Mutant | -10/Materials Mutant | -10/Mines Mutant | -10/Exiles Mutant | -9/Mines Mutant | -8/Materials Gladiator | -7/Factory Gladiator | -6/Factory Gladiator | -6/Waste Mutant | -6/Factory Mutant | -6/Extension Resources | -11 -10 -10 -10 -9 -8 -7 -6 -6 -6 -6 ----------- Run | Yrd Mat Min Exi Min Mat Fac Fac Was Fac Ext Matter Collected 1292 | 167 83 57 . 81 135 115 591 . . 63 Remotely . | . . . . . . . . . . . Salvage Created 3821 | . 264 . . 68 986 785 1570 . . 148 Parts 198 | . 22 . . 7 62 46 56 . . 5 Haulers Intercepted 7 | . 2 . . . 3 . 1 . . 1 Recyclers Shooed 2 | . . . . 1 . . 1 . . . Parts Field Recycled . | . . . . . . . . . . . Retrieved Matter . | . . . . . . . . . . . Parts Self-Destructed . | . . . . . . . . . . . Prevented . | . . . . . . . . . . . Kills | -11 -10 -10 -10 -9 -8 -7 -6 -6 -6 -6 ------- Run | Yrd Mat Min Exi Min Mat Fac Fac Was Fac Ext Combat Hostiles Destroyed 57 | . 7 . . 4 15 15 15 . . 1 Melee 35 | . . . . . 13 9 12 . . 1 Guns 10 | . 4 . . 4 2 . . . . . AOE 2 | . 2 . . . . . . . . . Classes Destroyed 16 | . 5 . . . 5 4 2 . . . Worker 13 | . . . . . 3 6 4 . . . Builder 1 | . . . . . . . 1 . . . Tunneler 1 | . . . . . . 1 . . . . Hauler 7 | . 2 . . . 3 . 1 . . 1 Recycler 6 | . . . . . 2 . 4 . . . Mechanic 1 | . . . . . 1 . . . . . Operator 5 | . 1 . . . 1 1 2 . . . Watcher 2 | . 1 . . . . . 1 . . . Swarmer 20 | . 5 . . 3 6 3 3 . . . Grunt 21 | . 2 . . 1 6 8 4 . . . Duelist 1 | . . . . . . 1 . . . . Sentry 4 | . . . . . . 2 2 . . . Specialist 2 | . . . . . 2 . . . . . Hunter 3 | . . . . . 1 . 2 . . . Programmer 5 | . . . . . . 1 3 . . 1 Behemoth 1 | . . . . . . . 1 . . . Best Kill Streak 6 | . 3 . . 3 6 5 6 . . 1 Combat Bots Only 4 | . 3 . . 3 4 3 4 . . 1 Max Kills in Single Turn 2 | . 2 . . 1 1 1 1 . . 1 Gunslinging . | . . . . . . . . . . . Exploded 2 | . 2 . . . . . . . . . Melee 1 | . . . . . 1 1 1 . . 1 Uniques/NPCs Destroyed . | . . . . . . . . . . . Combat | -11 -10 -10 -10 -9 -8 -7 -6 -6 -6 -6 -------- Run | Yrd Mat Min Exi Min Mat Fac Fac Was Fac Ext Hostile Shots Fired 801 | . 75 . . 4 79 87 226 6 . 324 Missed 311 | . 16 . . . 27 37 79 2 . 150 Damage Taken 5969 | . 685 . . 31 577 631 2013 152 . 1880 Core 1204 | . 143 . . . 103 92 114 44 . 708 Absorbed by Shields 789 | . . . . . 76 . 170 12 . 531 Core Remaining (%) 77 | 100 . . . 42 81 86 . . . . Volleys Fired 59 | . 40 . . 6 13 . . . . . Largest 2 | . 2 . . 2 2 . . . . . Hottest 130 | . 130 . . 130 130 . . . . . Shots Fired 102 | . 64 . . 12 26 . . . . . Gun 101 | . 63 . . 12 26 . . . . . Cannon . | . . . . . . . . . . . Launcher 1 | . 1 . . . . . . . . . Special . | . . . . . . . . . . . Kinetic . | . . . . . . . . . . . Thermal 101 | . 63 . . 12 26 . . . . . Explosive 1 | . 1 . . . . . . . . . Electromagnetic . | . . . . . . . . . . . Robot Hit Streak 8 | . 7 . . 8 4 . . . . . Robot Miss Streak 5 | . 5 . . 3 4 . . . . . Penetration Max . | . . . . . . . . . . . Secondary Targets 2 | . 1 . . 1 . . . . . . Max Gunslinging Chain 1 | . 1 . . 1 . . . . . . Shots Hit Robots 190 | . 35 . . 5 45 46 56 . . 3 Core Hits 86 | . 13 . . 5 30 15 21 . . 2 Critical Kills 1 | . . . . . . . 1 . . . Critical Parts Destroyed 7 | . . . . . . 5 2 . . . Critical Strikes 25 | . . . . . 8 7 9 . . 1 Burn 2 | . . . . . 2 . . . . . Smash 8 | . . . . . . 5 3 . . . Sever 7 | . . . . . . . 6 . . 1 Impale 8 | . . . . . 6 2 . . . . Melee Attacks 180 | . . . . . 58 54 65 . . 3 Impact 40 | . . . . . 2 23 15 . . . Slashing 67 | . . . . . . 14 50 . . 3 Piercing 73 | . . . . . 56 17 . . . . Sneak Attacks 39 | . . . . . 10 9 19 . . 1 Combat Hostiles 7 | . . . . . 1 1 5 . . . Follow-up Attacks 16 | . . . . . 1 6 9 . . . Damage Inflicted 8310 | 8 668 14 . 78 1453 2382 3514 . . 193 Guns 801 | . 538 . . 77 186 . . . . . Cannons . | . . . . . . . . . . . Explosions 119 | . 119 . . . . . . . . . Melee 7356 | . . . . . 1267 2382 3514 . . 193 Ramming 34 | 8 11 14 . 1 . . . . . . Kinetic . | . . . . . . . . . . . Thermal 801 | . 538 . . 77 186 . . . . . Explosive 119 | . 119 . . . . . . . . . Electromagnetic . | . . . . . . . . . . . Impact 1598 | . . . . . 23 817 758 . . . Slashing 4122 | . . . . . . 1173 2756 . . 193 Piercing 1636 | . . . . . 1244 392 . . . . Highest Corruption 21 | . . . . . . 1 1 21 21 21 Average Corruption 7 | . . . . . . 1 1 13 21 21 Corruption Purged . | . . . . . . . . . . . Corruption Blocked . | . . . . . . . . . . . Effects 50 | . . . . . . 5 9 10 3 23 Message Errors 8 | . . . . . . 3 2 1 . 2 Matter Fused 13 | . . . . . . 1 3 3 . 6 Heat Flow Errors 8 | . . . . . . . 3 . . 5 Energy Discharges 9 | . . . . . . 1 1 1 1 5 Data Loss (minor) 7 | . . . . . . . . 1 2 4 Data Loss (major) 2 | . . . . . . . . 1 . 1 Alerts 1 | . . . . . . . . 1 . . Misdirections 2 | . . . . . . . . 2 . . Overload Shots . | . . . . . . . . . . . Overflow Damage 1255 | . 14 . . . 42 518 681 . . . Projectiles . | . . . . . . . . . . . Explosions 14 | . 14 . . . . . . . . . Melee 1241 | . . . . . 42 518 681 . . . Knockbacks 7 | . . . . . . 5 2 . . . Impact 7 | . . . . . . 5 2 . . . Kinetic . | . . . . . . . . . . . Secondary . | . . . . . . . . . . . Self-Inflicted Damage 30 | . 30 . . . . . . . . . Shots 1 | . 1 . . . . . . . . . Rammed 8 | 3 2 3 . . . . . . . . Targets Rammed 9 | 3 2 3 . 1 . . . . . . Kicked 1 | . . . . 1 . . . . . . Crushed . | . . . . . . . . . . . Highest Temperature 427 | . 427 . . 270 356 9 409 . . 231 Average Temperature 143 | . 190 . . 118 110 6 113 . . 106 Received Heat Transfer 1793 | . 174 . . . 108 261 667 . . 583 Effects 15 | . 13 . . . 1 . 1 . . . Shutdowns 4 | . 2 . . . 1 . 1 . . . Energy Bleed 6 | . 6 . . . . . . . . . Interference 4 | . 4 . . . . . . . . . Matter Decay 1 | . 1 . . . . . . . . . Siege Activations . | . . . . . . . . . . . Robots Corrupted 10 | . . . . . . 6 4 . . . Combat Hostiles 9 | . . . . . . 6 3 . . . Parts Fried 10 | . . . . . . 4 6 . . . Impact Corruptions 24 | . . . . . 1 13 10 . . . Robots Melted 1 | . 1 . . . . . . . . . Combat Hostiles 1 | . 1 . . . . . . . . . Parts Melted 5 | . 2 . . 2 1 . . . . . Heat Transferred 2109 | . 1332 . . 185 592 . . . . . Parts Sabotaged . | . . . . . . . . . . . Parts Stolen . | . . . . . . . . . . . Parts Stripped . | . . . . . . . . . . . Power Chain Reactions . | . . . . . . . . . . . Alert | -11 -10 -10 -10 -9 -8 -7 -6 -6 -6 -6 ------- Run | Yrd Mat Min Exi Min Mat Fac Fac Was Fac Ext Peak Influence 563 | . 142 8 . 137 563 457 398 110 45 56 Initial 223 | . . 8 . . 53 182 223 110 45 21 Average 157 | . 40 4 . 110 281 309 235 92 45 27 Maximum Alert Level 2 | . . . . . 2 2 1 . . . Low Security (%) 62 | 100 100 100 . 100 28 8 36 100 100 100 Level 1 32 | . . . . . 50 77 63 . . . Level 2 5 | . . . . . 21 14 . . . . Level 3 . | . . . . . . . . . . . Level 4 . | . . . . . . . . . . . Level 5 . | . . . . . . . . . . . High Security . | . . . . . . . . . . . Max Security . | . . . . . . . . . . . Squads Dispatched 14 | . . . . . 4 4 6 . . . Investigation 2 | . . . . . 1 1 . . . . Extermination 5 | . . . . . . 2 3 . . . Reinforcement 7 | . . . . . 3 1 3 . . . Assault . | . . . . . . . . . . . Garrison . | . . . . . . . . . . . Intercept . | . . . . . . . . . . . Searches Triggered . | . . . . . . . . . . . Construction Impeded . | . . . . . . . . . . . Haulers Reinforced . | . . . . . . . . . . . Active Scanning Responses . | . . . . . . . . . . . Cargo Convoy Interrupts . | . . . . . . . . . . . Stealth | -11 -10 -10 -10 -9 -8 -7 -6 -6 -6 -6 --------- Run | Yrd Mat Min Exi Min Mat Fac Fac Was Fac Ext Distress Signals 6 | . . . . . 2 3 1 . . . Communications Jammed . | . . . . . . . . . . . Distress Signals . | . . . . . . . . . . . Times Spotted 122 | . 16 . . 8 33 30 21 6 . 8 Peak Tracking Total 6 | . 3 . . 4 5 5 4 6 . 5 Tactical Retreats 12 | . . . . . 6 4 1 . . 1 Traps | -11 -10 -10 -10 -9 -8 -7 -6 -6 -6 -6 ------- Run | Yrd Mat Min Exi Min Mat Fac Fac Was Fac Ext Traps Triggered 7 | . 1 . . . 2 1 2 . . 1 Indirectly . | . . . . . . . . . . . Trap Hack Attempts . | . . . . . . . . . . . Triggered . | . . . . . . . . . . . Disarmed . | . . . . . . . . . . . Reprogrammed . | . . . . . . . . . . . Reused . | . . . . . . . . . . . Traps Extracted . | . . . . . . . . . . . Installed . | . . . . . . . . . . . Triggered . | . . . . . . . . . . . Machines | -11 -10 -10 -10 -9 -8 -7 -6 -6 -6 -6 ---------- Run | Yrd Mat Min Exi Min Mat Fac Fac Was Fac Ext Machines Disabled . | . . . . . . . . . . . Max in Single Turn . | . . . . . . . . . . . Machines Repaired . | . . . . . . . . . . . Machines Dismantled . | . . . . . . . . . . . Machines Sabotaged . | . . . . . . . . . . . Overloaded Fab Kills . | . . . . . . . . . . . Hacking | -11 -10 -10 -10 -9 -8 -7 -6 -6 -6 -6 --------- Run | Yrd Mat Min Exi Min Mat Fac Fac Was Fac Ext Machines Accessed 4 | . . . 1 . . 2 . . 1 . Terminals 3 | . . . . . . 2 . . 1 . Fabricators . | . . . . . . . . . . . Repair Stations . | . . . . . . . . . . . Recycling Units . | . . . . . . . . . . . Scanalyzers . | . . . . . . . . . . . Garrison Access . | . . . . . . . . . . . Total Hacks 5 | . . . 1 . . 3 . . 1 . Successful 2 | . . . 1 . . . . . 1 . Failed 3 | . . . . . . 3 . . . . Catastrophic 2 | . . . . . . 2 . . . . Database Lockouts . | . . . . . . . . . . . Manual 1 | . . . 1 . . . . . . . Terminals 4 | . . . . . . 3 . . 1 . Fabricators . | . . . . . . . . . . . Repair Stations . | . . . . . . . . . . . Recycling Units . | . . . . . . . . . . . Scanalyzers . | . . . . . . . . . . . Garrison Access . | . . . . . . . . . . . Terminal Hacks 2 | . . . 1 . . . . . 1 . Open Door 1 | . . . . . . . . . 1 . Derelict Proto ID Bank 1 | . . . 1 . . . . . . . Fabricator Hacks . | . . . . . . . . . . . Repair Station Hacks . | . . . . . . . . . . . Recycling Unit Hacks . | . . . . . . . . . . . Scanalyzer . | . . . . . . . . . . . Garrison Access Hacks . | . . . . . . . . . . . Unauthorized Hacks . | . . . . . . . . . . . Terminals . | . . . . . . . . . . . Fabricators . | . . . . . . . . . . . Repair Stations . | . . . . . . . . . . . Recycling Units . | . . . . . . . . . . . Scanalyzers . | . . . . . . . . . . . Garrison Access . | . . . . . . . . . . . Data Cores Recovered 1 | . 1 . . . . . . . . . Used . | . . . . . . . . . . . Hacking Detections 2 | . . . . . . 2 . . . . Full Trace Events 1 | . . . . . . 1 . . . . Feedback Events . | . . . . . . . . . . . Feedback Blocked . | . . . . . . . . . . . Robot Schematics Acquired . | . . . . . . . . . . . Robots Built . | . . . . . . . . . . . Authchips . | . . . . . . . . . . . Time . | . . . . . . . . . . . Total Robot Build Rating . | . . . . . . . . . . . Part Schematics Acquired . | . . . . . . . . . . . Parts Built . | . . . . . . . . . . . Authchips . | . . . . . . . . . . . Time . | . . . . . . . . . . . Total Part Build Rating . | . . . . . . . . . . . Parts Repaired . | . . . . . . . . . . . Time . | . . . . . . . . . . . Parts Recycled . | . . . . . . . . . . . Recycled Matter . | . . . . . . . . . . . Retrieved Matter . | . . . . . . . . . . . Retrieved Components . | . . . . . . . . . . . Parts Scanalyzed . | . . . . . . . . . . . Part Schematics Acquired . | . . . . . . . . . . . Parts Damaged . | . . . . . . . . . . . Bothacking | -11 -10 -10 -10 -9 -8 -7 -6 -6 -6 -6 ------------ Run | Yrd Mat Min Exi Min Mat Fac Fac Was Fac Ext Used RIF Installer . | . . . . . . . . . . . Robots Hacked . | . . . . . . . . . . . Non-combat . | . . . . . . . . . . . Combat . | . . . . . . . . . . . Robot Hacks Applied . | . . . . . . . . . . . Relay Couplers Released . | . . . . . . . . . . . Fabnet Peak Effective % . | . . . . . . . . . . . Robots Rewired . | . . . . . . . . . . . Allies Hacked . | . . . . . . . . . . . Hacks Repelled . | . . . . . . . . . . . Allies | -11 -10 -10 -10 -9 -8 -7 -6 -6 -6 -6 -------- Run | Yrd Mat Min Exi Min Mat Fac Fac Was Fac Ext Total Allies 6 | . . 3 . 2 . . . 1 . . Largest Group 3 | . . 3 2 2 1 . . 1 . . Highest-Rated Group 45 | . . 40 32 45 31 . . 31 . . Highest-Rated Ally 31 | . . 16 16 31 31 . . 31 . . Total Orders . | . . . . . . . . . . . Ally Attacks 27 | . . . . 7 6 . . 14 . . Total Damage 500 | . . . . 102 107 . . 291 . . Kills 2 | . . . . 1 1 . . . . . Allies Corrupted . | . . . . . . . . . . . Allies Melted . | . . . . . . . . . . . Intel | -11 -10 -10 -10 -9 -8 -7 -6 -6 -6 -6 ------- Run | Yrd Mat Min Exi Min Mat Fac Fac Was Fac Ext Robot Analysis Total . | . . . . . . . . . . . Derelict Logs Recovered 3 | . . 2 . 1 . . . . . . Drone Launches . | . . . . . . . . . . . Drone Recoveries . | . . . . . . . . . . . Exploration | -11 -10 -10 -10 -9 -8 -7 -6 -6 -6 -6 ------------- Run | Yrd Mat Min Exi Min Mat Fac Fac Was Fac Ext Turns Passed 6430 | 76 1160 682 294 399 828 1118 1091 176 74 532 Spaces Moved 4168 | 44 500 424 222 367 507 792 739 139 60 374 Core 55 | 9 40 . 1 . . . . 2 . 3 Treads 926 | 35 348 424 119 . . . . . . . Legs 3075 | . . . 102 367 507 792 739 137 60 371 Wheels 59 | . 59 . . . . . . . . . Hover 53 | . 53 . . . . . . . . . Flight . | . . . . . . . . . . . Fastest Speed 50 | 50 95 160 90 90 90 100 100 110 120 120 Average Speed 126 | 142 203 160 129 90 95 106 108 121 120 134 Slowest Speed 550 | 160 550 160 550 90 170 107 112 400 120 450 Overloaded Moves . | . . . . . . . . . . . Propulsion Burnouts . | . . . . . . . . . . . Robots Hopped . | . . . . . . . . . . . Cave-ins Triggered . | . . . . . . . . . . . Exploration Rate (%) 47 | 4 89 93 61 76 38 22 21 83 2 28 Regions Visited 10 Branch Regions 4 Pre-discovered Areas . | . . . . . . . . . . . Known Exits Taken . | . . . . . . . . . . . Unknown Exits Taken 8 | 1 1 1 1 1 1 1 . . 1 . Scrap Searched 2 | . . 1 . 1 . . . . . . Spaces Dug . | . . . . . . . . . . . Terrain Destroyed 11 | . 11 . . . . . . . . . Melee . | . . . . . . . . . . . Projectile . | . . . . . . . . . . . AOE 11 | . 11 . . . . . . . . . Terrain Rammed . | . . . . . . . . . . . Walls Destroyed . | . . . . . . . . . . . Machines Disabled . | . . . . . . . . . . . Actions | -11 -10 -10 -10 -9 -8 -7 -6 -6 -6 -6 --------- Run | Yrd Mat Min Exi Min Mat Fac Fac Was Fac Ext Total 5046 | 53 581 426 229 423 764 1014 950 145 62 399 Wait 465 | . 4 . . 47 149 143 108 2 . 12 Move 4159 | 43 499 423 221 366 506 791 739 138 59 374 Hop . | . . . . . . . . . . . Pick Up 41 | 1 8 . . 3 10 5 11 2 . 1 Fast Attach 48 | 6 11 . 2 . 10 7 11 . . 1 Attach 30 | . 2 . . . 4 4 13 2 3 2 Detach 35 | . 7 . 2 . 7 9 10 . . . Swap . | . . . . . . . . . . . Drop 36 | . 8 . 4 . 9 8 5 1 . 1 Fire 59 | . 40 . . 6 13 . . . . . Melee 159 | . . . . . 56 47 53 . . 3 Ram . | . . . . . . . . . . . Kick 1 | . . . . 1 . . . . . . Crush 8 | 3 2 3 . . . . . . . . Escape Stasis 5 | . . . . . . . . . . 5 Rewire . | . . . . . . . . . . . Trap . | . . . . . . . . . . . Miscellaneous . | . . . . . . . . . . . Route ------- -11/Scrapyard -10/Materials (discovered 4 exits: [*Mat x3] / [*Min]) -10/Mines (discovered 3 exits: [*Mat x2] / *Exi) -10/Exiles -9/Mines -8/Materials (discovered 2 exits: *Fac x2) -7/Factory -6/Factory -6/Waste -6/Factory -6/Extension History --------- Turn | Location | Event 17 | -11/Scrapyard | Discovered new exit (range 15) 77 | -11/Scrapyard | Entered Materials 324 | -10/Materials | Build established: Mutant 465 | -10/Materials | Discovered new exit (range 15) 492 | -10/Materials | Discovered new exit (range 15) 725 | -10/Materials | Core integrity fell below 50% 747 | -10/Materials | Lost 4 parts (1p2n1w) 781 | -10/Materials | Discovered new exit (range 16) 1156 | -10/Materials | Discovered new exit (range 3) 1237 | -10/Materials | Entered Mines 1242 | -10/Mines | Discovered new exit (range 15) 1266 | -10/Mines | Received a Rocket Launcher from a helpful Derelict 1359 | -10/Mines | Learned Materials emergency access door positions 1388 | -10/Mines | Deemed a non-threat by the Exiles lab entrance 1388 | -10/Mines | Discovered new exit (range 5) 1527 | -10/Mines | Learned 2 Materials zone layouts 1658 | -10/Mines | Found a damaged Exp. Sensor Array with a note attached 1729 | -10/Mines | Discovered new exit (range 11) 1761 | -10/Mines | Assisted by bots powering up and referring to "LRC-V3" 1919 | -10/Mines | Entered Exiles 1919 | -10/Exiles | Accompanied by 2 allies 1958 | -10/Exiles | Met 8R-AWN 1985 | -10/Exiles | Met EX-HEX 2030 | -10/Exiles | Met EX-BIN 2049 | -10/Exiles | Aligned with FarCom system 2051 | -10/Exiles | Given EX-Vault access code 2091 | -10/Exiles | Opened EX-Vault 2118 | -10/Exiles | Found Potential Leg 2122 | -10/Exiles | Found Potential Leg 2140 | -10/Exiles | Warned to stay clear of 0b10 Research branches 2148 | -10/Exiles | Exiles lab attacked by MAIN.C 2201 | -10/Exiles | Discovered new exit (range 14) 2213 | -10/Exiles | Left Exiles lab with Potential Leg 2213 | -10/Exiles | Entered Mines 2213 | -9/Mines | Discovered new exit (range 12) 2228 | -9/Mines | Joined a pair of Derelicts in attacking an 0b10 outpost 2263 | -9/Mines | Found a hidden stash of uninstalled traps 2356 | -9/Mines | Learned Materials stockpile data 2384 | -9/Mines | A weapon hastily lodged in a ceiling crevice suddenly fell to the ground 2502 | -9/Mines | Assembled infested the area 2507 | -9/Mines | Assisted by a Guerilla fighting off Assembled 2612 | -9/Mines | Entered Materials 2612 | -8/Materials | Accompanied by 1 ally 2612 | -8/Materials | Evolved 4 slots: Propulsion x1, Utility x3 2617 | -8/Materials | Led the pair of lost Derelicts to an unsafe place 3119 | -8/Materials | Discovered new exit (range 11) 3256 | -8/Materials | Discovered new exit (range 13) 3440 | -8/Materials | Entered Factory 3440 | -7/Factory | Evolved 2 slots: Propulsion x1, Utility x1 3610 | -7/Factory | Build established: Gladiator 3917 | -7/Factory | Build established: Scavenger-Gladiator 4328 | -7/Factory | Build established: Gladiator 4329 | -7/Factory | Discovered new exit (range 12) 4558 | -7/Factory | Entered another Factory area 4558 | -6/Factory | Evolved 2 slots: Power x1, Utility x1 4963 | -6/Factory | Spotted B-75 Beast 5162 | -6/Factory | Lost 4 parts (2p1n1w) 5178 | -6/Factory | Destroyed B-75 Beast 5208 | -6/Factory | Lost 4 parts (1p1n2u) 5548 | -6/Factory | Build established: Scavenger-Gladiator 5649 | -6/Factory | Sucked down chute 5649 | -6/Factory | Entered Waste 5650 | -6/Waste | Met a frightened Derelict 5656 | -6/Waste | Spotted C-40 Crusher 5664 | -6/Waste | EMP discharged 5664 | -6/Waste | System corruption reached 10% 5690 | -6/Waste | Spotted C-40 Crusher 5699 | -6/Waste | Spotted C-40 Crusher 5699 | -6/Waste | Spotted C-40 Crusher 5750 | -6/Waste | Spotted C-40 Crusher 5758 | -6/Waste | Spotted C-40 Crusher 5761 | -6/Waste | Crushed by Compactor (1 part destroyed, 1 dropped) 5764 | -6/Waste | EMP discharged 5795 | -6/Waste | Discovered new exit (range 14) 5795 | -6/Waste | Crushed by Compactor (1 part destroyed, 2 dropped) 5803 | -6/Waste | Crushed by Compactor (1 part destroyed, 1 dropped) 5807 | -6/Waste | Crushed by Compactor (1 part destroyed, 1 dropped) 5825 | -6/Waste | Entered Factory 5838 | -6/Factory | Lost 3 parts (1p2n) 5891 | -6/Factory | Discovered new exit (range 9) 5899 | -6/Factory | Entered Extension 6086 | -6/Extension | Spotted B-75 Beast 6114 | -6/Extension | Build established: Mutant 6380 | -6/Extension | Spotted B-75 Beast 6422 | -6/Extension | Core integrity fell below 50% 6428 | -6/Extension | Core integrity fell below 20% 6431 | -6/Extension | Destroyed by B-75 Beast with Magnetic Acceleration Cannon Last Messages --------------- System corrupted: Matter fused (-8). Power Sword blasted off. U-05 Engineer builds a Wall. W-25 Informer destroyed. Fusion Compressor destroyed. U-05 Engineer destroyed. Carbon-fiber Leg destroyed. Knocked back. Door Terminal disabled. Acquired 2 matter. Critical hit (Meltdown: +250). Knocked back. System corrupted: Component data lost. Imp. Hardlight Generator destroyed. Arm. Leg destroyed. Carbon-fiber Leg destroyed. Imp. Actuator Array destroyed. Mic. Nuclear Core destroyed. Imp. Melee Analysis Suite destroyed. Knocked back. Map ----- +----------------------------------------------------+ | ?????????????????????????????????????????????????? | | ?????????????????????????????????????????????????? | | ?????????????????????????????????????????????????? | | ?????????????????????????????????????????????????? | | ?????????????????????????????????????????????????? | | ?????????????????????????????????????????????????? | | ?????????????????????????????????????????????????? | | ?????????????????????????????????????????????????? | | ?????????????????????????????????????????????????? | | ????????????? #??????????????????????????????????? | | ????????????? #????????? ????????????????????????? | | ????????????? #????????? ????????????????????????? | | ????????????? #??#####?? ????????????????????????? | | ??????????### ### ## ### ###?????????????????????? | | ??????????#"" "" "" ""#?????????????????????? | | ??????????# " " " " #?????????????????????? | | ??????????# #?????????????????????? | | ?##???###?# #?????????????????????? | | ##"####"### #########?????????????? | | ! ?????w????????? | | %* Y ???????????????? | | ! ?????????????????? | | % % % ??????????????????? | | / = t u ???????????????????? | | #########";%* BBY ##????????????????????? | | ????????##;! BB %@ ;#????????????????????? | | ?????????## BB %% %;#????????????????????? | | ??????????# BB % ;#????????????????????? | | ??????????# % ;#????????????????????? | | ??????????##;;## #"""########????????????????????? | | ???????????# #?###???????????????????????????????? | | ???????????#?????????????????????????????????????? | | | | | | | | | | | | | | | | | | | | | | | | | | | | | | | | | | | | | +----------------------------------------------------+ Best States ------------- Heat Dissipation 37 Energy Generation 45 Energy Capacity 500 Matter Stores 300 Matter Capacity 300 Sight Range 16 Terrain Scan Density 10 Armor Coverage 600 Melee Speed Boost 20 Phase Shifting 5 Evasion (%) 60 Targeting Accuracy 6 Melee Accuracy 12 Recoil Reduction 2 Offensive Hacking 10 Item Schematics ----------------- None Robot Schematics ------------------ None Fabricated ------------ Nothing Alien Tech Used ----------------- None Achievements -------------- None Challenges ------------ None Game ------ Seed LinkedCargoReplicator Manual? 0 Play Time 01:06:35 Cumulative 21.9 hours Start 2024.10.23 @ 15:23:28 End 2024.10.23 @ 16:35:54 Sessions 1 Manual Loads 0 Difficulty Rogue Special Mode None Game No. 33 Rogue 21 Adventurer 12 Explorer 0 Win Type - Total 0 Types 0/0/0/0/0/0/0/0/0 Lore% 8 Gallery% 18 Achievement% 16 Wizard Run 0 Options --------- Layout 1 ASCII 0 Keyboard 1 Movement Numpad Keybinds 0 Fullscreen 2 Font 32/SmallcapsGlow Map View 50x35 Zoom Use 0% Tactical HUD 0 Map Filters NONE Filters NONE Steam 1 RUN: 1fa550d3-559a-4faa-a22f-3039a536d963